[Event "January 2 Early 2024"]
[Site "https://www.chess.com"]
[Date "2024.01.02"]
[Round "3"]
[White "Finek, Vaclav"]
[Black "Grycel, Kamil"]
[Result "1-0"]
[Board "42"]
[TimeControl "180+1"]
[WhiteFideId "23718293"]
[BlackFideId "1115499"]
[WhiteElo "2843"]
[BlackElo "2617"]
[WhiteTeam "CZE"]
[BlackTeam "POL"]
[WhiteClock "0:00:14"]
[BlackClock "0:00:25"]

1. d4 {[%clk 0:03:00]}  d6 {[%clk 0:02:59]} 2. Nf3 {[%clk 0:03:00]}  Bg4 {[%clk 0:02:59]} 3. g3 {[%clk 0:02:58]}  Bxf3 {[%clk 0:02:57]} 4. exf3 {[%clk 0:02:59]}  e6 {[%clk 0:02:57]} 5. Bg2 {[%clk 0:02:59]}  d5 {[%clk 0:02:57]} 6. O-O {[%clk 0:02:58]}  c6 {[%clk 0:02:57]} 7. Re1 {[%clk 0:02:56]}  Ne7 {[%clk 0:02:56]} 8. f4 {[%clk 0:02:55]}  g6 {[%clk 0:02:57]} 9. c3 {[%clk 0:02:55]}  Nd7 {[%clk 0:02:53]} 10. Nd2 {[%clk 0:02:54]}  Bg7 {[%clk 0:02:53]} 11. Nf3 {[%clk 0:02:54]}  O-O {[%clk 0:02:52]} 12. a4 {[%clk 0:02:52]}  c5 {[%clk 0:02:48]} 13. Be3 {[%clk 0:02:52]}  Rc8 {[%clk 0:02:46]} 14. dxc5 {[%clk 0:02:49]}  Nxc5 {[%clk 0:02:44]} 15. Bd4 {[%clk 0:02:50]}  Nf5 {[%clk 0:02:32]} 16. Bxg7 {[%clk 0:02:47]}  Kxg7 {[%clk 0:02:33]} 17. h4 {[%clk 0:02:47]}  h5 {[%clk 0:02:32]} 18. Bh3 {[%clk 0:02:41]}  Qf6 {[%clk 0:02:20]} 19. Ne5 {[%clk 0:02:33]}  Rfd8 {[%clk 0:02:18]} 20. a5 {[%clk 0:02:20]}  Rc7 {[%clk 0:01:17]} 21. Bg2 {[%clk 0:02:13]}  d4 {[%clk 0:01:16]} 22. c4 {[%clk 0:02:11]}  Nd7 {[%clk 0:01:08]} 23. a6 {[%clk 0:02:08]}  b6 {[%clk 0:01:07]} 24. Bf1 {[%clk 0:01:26]}  Nxe5 {[%clk 0:01:06]} 25. fxe5 {[%clk 0:01:26]}  Qe7 {[%clk 0:01:07]} 26. Bd3 {[%clk 0:01:25]}  Qb4 {[%clk 0:00:52]} 27. Re2 {[%clk 0:01:20]}  Ne7 {[%clk 0:00:45]} 28. Ra4 {[%clk 0:01:16]}  Qc5 {[%clk 0:00:45]} 29. b4 {[%clk 0:01:16]}  Qc6 {[%clk 0:00:45]} 30. Raa2 {[%clk 0:01:12]}  Qf3 {[%clk 0:00:42]} 31. Rac2 {[%clk 0:01:08]}  Nc6 {[%clk 0:00:34]} 32. b5 {[%clk 0:00:54]}  Nxe5 {[%clk 0:00:34]} 33. Be4 {[%clk 0:00:55]}  Qg4 {[%clk 0:00:33]} 34. Rcd2 {[%clk 0:00:54]}  d3 {[%clk 0:00:29]} 35. Re1 {[%clk 0:00:52]}  Rxc4 {[%clk 0:00:25]} 36. Bb7 {[%clk 0:00:32]}  Qxd1 {[%clk 0:00:21]} 37. Rdxd1 {[%clk 0:00:32]}  d2 {[%clk 0:00:21]} 38. Rf1 {[%clk 0:00:29]}  Rcd4 {[%clk 0:00:19]} 39. Kg2 {[%clk 0:00:28]}  Nc4 {[%clk 0:00:19]} 40. Bf3 {[%clk 0:00:26]}  Na3 {[%clk 0:00:17]} 41. Be2 {[%clk 0:00:23]}  Rc8 {[%clk 0:00:15]} 42. f4 {[%clk 0:00:22]}  Rc5 {[%clk 0:00:15]} 43. Kf2 {[%clk 0:00:21]}  Nxb5 {[%clk 0:00:15]} 44. Ke3 {[%clk 0:00:22]}  Rd6 {[%clk 0:00:15]} 45. Rxd2 {[%clk 0:00:21]}  Rc3+ {[%clk 0:00:14]} 46. Rd3 {[%clk 0:00:21]}  Rcxd3+ {[%clk 0:00:14]} 47. Bxd3 {[%clk 0:00:22]}  Nc7 {[%clk 0:00:13]} 48. Rc1 {[%clk 0:00:22]}  Nd5+ {[%clk 0:00:14]} 49. Ke4 {[%clk 0:00:18]}  Nb4 {[%clk 0:00:14]} 50. Be2 {[%clk 0:00:18]}  Rd2 {[%clk 0:00:14]} 51. Ke3 {[%clk 0:00:17]}  Ra2 {[%clk 0:00:13]} 52. Rc8 {[%clk 0:00:10]}  Nxa6 {[%clk 0:00:13]} 53. Bc4 {[%clk 0:00:10]}  Nc5 {[%clk 0:00:13]} 54. Bxa2 {[%clk 0:00:09]}  Kf6 {[%clk 0:00:13]} 55. Rc7 {[%clk 0:00:09]}  a5 {[%clk 0:00:13]} 56. Rc6 {[%clk 0:00:09]}  Na4 {[%clk 0:00:12]} 57. Bb3 {[%clk 0:00:09]}  Nb2 {[%clk 0:00:12]} 58. Rxb6 {[%clk 0:00:09]}  a4 {[%clk 0:00:13]} 59. Ba2 {[%clk 0:00:09]}  a3 {[%clk 0:00:13]} 60. Rb3 {[%clk 0:00:08]}  Nc4+ {[%clk 0:00:13]} 61. Ke2 {[%clk 0:00:08]}  Nd6 {[%clk 0:00:13]} 62. Rxa3 {[%clk 0:00:08]}  Nf5 {[%clk 0:00:14]} 63. Rd3 {[%clk 0:00:09]}  Kg7 {[%clk 0:00:14]} 64. Kf3 {[%clk 0:00:09]}  Kf6 {[%clk 0:00:14]} 65. Rd7 {[%clk 0:00:09]}  Ng7 {[%clk 0:00:14]} 66. Bb1 {[%clk 0:00:09]}  Nf5 {[%clk 0:00:15]} 67. Bxf5 {[%clk 0:00:09]}  gxf5 {[%clk 0:00:16]} 68. Ke3 {[%clk 0:00:10]}  Kg6 {[%clk 0:00:17]} 69. Kd4 {[%clk 0:00:10]}  Kf6 {[%clk 0:00:17]} 70. Ra7 {[%clk 0:00:09]}  Kg6 {[%clk 0:00:18]} 71. Ke5 {[%clk 0:00:10]}  Kg7 {[%clk 0:00:18]} 72. Kd6 {[%clk 0:00:09]}  Kg6 {[%clk 0:00:19]} 73. Ke7 {[%clk 0:00:09]}  e5 {[%clk 0:00:20]} 74. fxe5 {[%clk 0:00:09]}  f4 {[%clk 0:00:20]} 75. gxf4 {[%clk 0:00:10]}  Kf5 {[%clk 0:00:21]} 76. Kxf7 {[%clk 0:00:10]}  Kxf4 {[%clk 0:00:21]} 77. e6 {[%clk 0:00:11]}  Kg4 {[%clk 0:00:22]} 78. e7 {[%clk 0:00:12]}  Kxh4 {[%clk 0:00:23]} 79. e8=Q {[%clk 0:00:13]}  Kh3 {[%clk 0:00:23]} 80. Qg8 {[%clk 0:00:13]}  h4 {[%clk 0:00:24]} 81. Ra4 {[%clk 0:00:13]}  Kh2 {[%clk 0:00:25]} 82. Rxh4# {[%clk 0:00:14]} 1-0

[Event "January 2 Early 2024"]
[Site "https://www.chess.com"]
[Date "2024.01.02"]
[Round "3"]
[White "Boruchovsky, Avital"]
[Black "Kuzmin, Roman"]
[Result "0-1"]
[Board "45"]
[TimeControl "180+1"]
[WhiteFideId "2800055"]
[BlackFideId "44134932"]
[WhiteElo "2835"]
[BlackElo "2591"]
[WhiteTeam "ISR"]
[BlackTeam "RUS"]
[WhiteClock "0:00:35"]
[BlackClock "0:00:58"]

1. Nf3 {[%clk 0:03:00]}  Nf6 {[%clk 0:03:00]} 2. g3 {[%clk 0:03:00]}  e6 {[%clk 0:03:00]} 3. Bg2 {[%clk 0:03:00]}  d5 {[%clk 0:03:01]} 4. O-O {[%clk 0:03:00]}  Be7 {[%clk 0:03:02]} 5. d4 {[%clk 0:02:57]}  O-O {[%clk 0:03:02]} 6. b3 {[%clk 0:02:54]}  a5 {[%clk 0:03:01]} 7. c4 {[%clk 0:02:53]}  a4 {[%clk 0:03:01]} 8. Bb2 {[%clk 0:02:45]}  Ne4 {[%clk 0:02:47]} 9. bxa4 {[%clk 0:02:42]}  Bd7 {[%clk 0:02:43]} 10. Nbd2 {[%clk 0:02:34]}  Bxa4 {[%clk 0:02:42]} 11. Qc1 {[%clk 0:02:35]}  Nd6 {[%clk 0:02:34]} 12. Ne5 {[%clk 0:02:31]}  c6 {[%clk 0:02:32]} 13. e4 {[%clk 0:02:22]}  dxe4 {[%clk 0:02:12]} 14. Nxe4 {[%clk 0:02:22]}  Nxe4 {[%clk 0:02:13]} 15. Bxe4 {[%clk 0:02:21]}  Nd7 {[%clk 0:02:14]} 16. Nd3 {[%clk 0:02:08]}  Bf6 {[%clk 0:01:54]} 17. Rb1 {[%clk 0:01:51]}  Qc7 {[%clk 0:01:52]} 18. Bc3 {[%clk 0:01:45]}  Rfd8 {[%clk 0:01:44]} 19. Qe3 {[%clk 0:01:43]}  Nb6 {[%clk 0:01:41]} 20. Rb4 {[%clk 0:01:27]}  Bc2 {[%clk 0:01:17]} 21. Nc5 {[%clk 0:01:00]}  Bxe4 {[%clk 0:01:16]} 22. Qxe4 {[%clk 0:01:00]}  Ra3 {[%clk 0:01:04]} 23. Qc2 {[%clk 0:00:49]}  Rxc3 {[%clk 0:01:01]} 24. Qxc3 {[%clk 0:00:43]}  Bxd4 {[%clk 0:01:01]} 25. Nxe6 {[%clk 0:00:38]}  Bxc3 {[%clk 0:00:59]} 26. Nxc7 {[%clk 0:00:37]}  Bxb4 {[%clk 0:00:59]} 27. Rb1 {[%clk 0:00:35]}  Bc5 {[%clk 0:00:58]} 0-1

[Event "January 2 Early 2024"]
[Site "https://www.chess.com"]
[Date "2024.01.02"]
[Round "3"]
[White "Klukin, Kirill"]
[Black "Legenia, Artem"]
[Result "1-0"]
[Board "49"]
[TimeControl "180+1"]
[WhiteFideId "24199273"]
[BlackFideId "14136945"]
[WhiteElo "2820"]
[BlackElo "2376"]
[WhiteTeam "RUS"]
[BlackTeam "UKR"]
[WhiteClock "0:00:09"]
[BlackClock "0:00:00"]

1. d4 {[%clk 0:02:59]}  d5 {[%clk 0:02:48]} 2. c4 {[%clk 0:02:59]}  e6 {[%clk 0:02:46]} 3. Nc3 {[%clk 0:02:59]}  c6 {[%clk 0:02:46]} 4. Nf3 {[%clk 0:02:59]}  Nf6 {[%clk 0:02:45]} 5. e3 {[%clk 0:02:59]}  Be7 {[%clk 0:02:42]} 6. Qc2 {[%clk 0:02:59]}  Nbd7 {[%clk 0:02:42]} 7. Bd3 {[%clk 0:03:00]}  O-O {[%clk 0:02:42]} 8. O-O {[%clk 0:03:00]}  b6 {[%clk 0:02:33]} 9. b3 {[%clk 0:02:42]}  dxc4 {[%clk 0:02:29]} 10. bxc4 {[%clk 0:02:40]}  c5 {[%clk 0:02:29]} 11. d5 {[%clk 0:02:39]}  exd5 {[%clk 0:02:28]} 12. cxd5 {[%clk 0:02:39]}  Bb7 {[%clk 0:02:25]} 13. e4 {[%clk 0:02:37]}  Re8 {[%clk 0:02:22]} 14. Bb2 {[%clk 0:02:25]}  Bd6 {[%clk 0:02:11]} 15. Rad1 {[%clk 0:02:15]}  a6 {[%clk 0:02:09]} 16. a4 {[%clk 0:02:15]}  Qc7 {[%clk 0:02:06]} 17. h3 {[%clk 0:02:09]}  h6 {[%clk 0:01:59]} 18. Nd2 {[%clk 0:02:03]}  Bh2+ {[%clk 0:01:53]} 19. Kh1 {[%clk 0:02:03]}  Bf4 {[%clk 0:01:51]} 20. Nc4 {[%clk 0:01:55]}  Ne5 {[%clk 0:01:35]} 21. Nxe5 {[%clk 0:01:30]}  Bxe5 {[%clk 0:01:32]} 22. Rfe1 {[%clk 0:01:19]}  c4 {[%clk 0:00:55]} 23. Bf1 {[%clk 0:01:17]}  Rad8 {[%clk 0:00:45]} 24. g3 {[%clk 0:01:06]}  Bd6 {[%clk 0:00:12]} 25. Bg2 {[%clk 0:01:04]}  Nd7 {[%clk 0:00:11]} 26. f4 {[%clk 0:01:01]}  Nc5 {[%clk 0:00:10]} 27. e5 {[%clk 0:00:57]}  Bf8 {[%clk 0:00:10]} 28. d6 {[%clk 0:00:57]}  Qb8 {[%clk 0:00:10]} 29. Nd5 {[%clk 0:00:48]}  Nd3 {[%clk 0:00:06]} 30. Rxd3 {[%clk 0:00:48]}  cxd3 {[%clk 0:00:06]} 31. Qxd3 {[%clk 0:00:49]}  Qa8 {[%clk 0:00:05]} 32. Rd1 {[%clk 0:00:41]}  Bxd6 {[%clk 0:00:02]} 33. exd6 {[%clk 0:00:22]}  Rxd6 {[%clk 0:00:00]} 34. Nf6+ {[%clk 0:00:09]} 1-0

[Event "January 2 Early 2024"]
[Site "https://www.chess.com"]
[Date "2024.01.02"]
[Round "3"]
[White "Travadon, Loic"]
[Black "Fedoseev, Vladimir"]
[Result "0-1"]
[Board "52"]
[TimeControl "180+1"]
[WhiteFideId "26092131"]
[BlackFideId "24130737"]
[WhiteElo "2256"]
[BlackElo "3030"]
[WhiteTeam "FRA"]
[BlackTeam "SLO"]
[WhiteClock "0:01:35"]
[BlackClock "0:01:28"]

1. e4 {[%clk 0:03:00]}  Nc6 {[%clk 0:02:54]} 2. Nc3 {[%clk 0:02:58]}  Nd4 {[%clk 0:02:51]} 3. f4 {[%clk 0:02:52]}  c5 {[%clk 0:02:49]} 4. Nf3 {[%clk 0:02:52]}  d6 {[%clk 0:02:38]} 5. Bc4 {[%clk 0:02:51]}  e6 {[%clk 0:02:21]} 6. d3 {[%clk 0:02:51]}  Ne7 {[%clk 0:02:20]} 7. O-O {[%clk 0:02:50]}  d5 {[%clk 0:02:16]} 8. Bb3 {[%clk 0:02:49]}  Nxb3 {[%clk 0:02:13]} 9. axb3 {[%clk 0:02:50]}  Nc6 {[%clk 0:02:12]} 10. f5 {[%clk 0:02:40]}  dxe4 {[%clk 0:02:12]} 11. Nxe4 {[%clk 0:02:24]}  exf5 {[%clk 0:02:11]} 12. Neg5 {[%clk 0:02:23]}  Be7 {[%clk 0:02:07]} 13. Bd2 {[%clk 0:02:15]}  O-O {[%clk 0:02:05]} 14. h4 {[%clk 0:02:15]}  h6 {[%clk 0:02:00]} 15. Nh3 {[%clk 0:02:14]}  Bf6 {[%clk 0:01:58]} 16. Bc3 {[%clk 0:02:15]}  Nd4 {[%clk 0:01:55]} 17. g3 {[%clk 0:02:09]}  Re8 {[%clk 0:01:52]} 18. Nxd4 {[%clk 0:02:04]}  Bxd4+ {[%clk 0:01:52]} 19. Bxd4 {[%clk 0:02:04]}  Qxd4+ {[%clk 0:01:52]} 20. Kh2 {[%clk 0:02:02]}  Bd7 {[%clk 0:01:51]} 21. Qf3 {[%clk 0:02:00]}  Qxb2 {[%clk 0:01:39]} 22. Rac1 {[%clk 0:02:00]}  Rab8 {[%clk 0:01:35]} 23. g4 {[%clk 0:01:57]}  Qe5+ {[%clk 0:01:31]} 24. Kg1 {[%clk 0:01:46]}  Qd4+ {[%clk 0:01:31]} 25. Kh2 {[%clk 0:01:35]}  Re3 {[%clk 0:01:28]} 0-1

[Event "January 2 Early 2024"]
[Site "https://www.chess.com"]
[Date "2024.01.02"]
[Round "3"]
[White "Meier, Georg"]
[Black "Skliarov, Viktor"]
[Result "1-0"]
[Board "53"]
[TimeControl "180+1"]
[WhiteFideId "4675789"]
[BlackFideId "14106736"]
[WhiteElo "3013"]
[BlackElo "2663"]
[WhiteTeam "URU"]
[BlackTeam "UKR"]
[WhiteClock "0:02:27"]
[BlackClock "0:00:53"]

1. Nf3 {[%clk 0:03:00]}  g6 {[%clk 0:02:59]} 2. d4 {[%clk 0:03:00]}  Bg7 {[%clk 0:02:59]} 3. g3 {[%clk 0:03:00]}  Nf6 {[%clk 0:02:59]} 4. Bg2 {[%clk 0:03:01]}  O-O {[%clk 0:03:00]} 5. O-O {[%clk 0:03:02]}  c6 {[%clk 0:03:00]} 6. c4 {[%clk 0:03:01]}  d5 {[%clk 0:03:01]} 7. cxd5 {[%clk 0:03:01]}  cxd5 {[%clk 0:03:02]} 8. Nc3 {[%clk 0:03:01]}  Nc6 {[%clk 0:03:02]} 9. Ne5 {[%clk 0:03:02]}  Nd7 {[%clk 0:03:01]} 10. Nxd5 {[%clk 0:03:00]}  Ndxe5 {[%clk 0:02:59]} 11. dxe5 {[%clk 0:03:01]}  Nxe5 {[%clk 0:02:36]} 12. Bg5 {[%clk 0:03:01]}  f6 {[%clk 0:02:31]} 13. Be3 {[%clk 0:03:00]}  Be6 {[%clk 0:02:25]} 14. Rc1 {[%clk 0:02:58]}  Nc6 {[%clk 0:02:00]} 15. b4 {[%clk 0:02:34]}  a6 {[%clk 0:01:26]} 16. Bb6 {[%clk 0:02:28]}  Qd7 {[%clk 0:01:14]} 17. Nc7 {[%clk 0:02:28]}  Rad8 {[%clk 0:01:00]} 18. Nxe6 {[%clk 0:02:27]}  Qxe6 {[%clk 0:01:00]} 19. Bxd8 {[%clk 0:02:27]}  Rxd8 {[%clk 0:00:53]} 20. Rxc6 {[%clk 0:02:27]} 1-0

[Event "January 2 Early 2024"]
[Site "https://www.chess.com"]
[Date "2024.01.02"]
[Round "3"]
[White "Bluebaum, Matthias"]
[Black "Hansen, Sune Berg"]
[Result "1-0"]
[Board "54"]
[TimeControl "180+1"]
[WhiteFideId "24651516"]
[BlackFideId "1400266"]
[WhiteElo "3005"]
[BlackElo "2654"]
[WhiteTeam "GER"]
[BlackTeam "DEN"]
[WhiteClock "0:00:46"]
[BlackClock "0:00:17"]

1. d4 {[%clk 0:03:00]}  d5 {[%clk 0:02:58]} 2. c4 {[%clk 0:02:58]}  e6 {[%clk 0:02:58]} 3. Nc3 {[%clk 0:02:58]}  Nf6 {[%clk 0:02:56]} 4. cxd5 {[%clk 0:02:58]}  exd5 {[%clk 0:02:56]} 5. Bg5 {[%clk 0:02:59]}  c6 {[%clk 0:02:56]} 6. e3 {[%clk 0:02:59]}  Bf5 {[%clk 0:02:55]} 7. Nge2 {[%clk 0:02:59]}  h6 {[%clk 0:02:53]} 8. Bf4 {[%clk 0:02:59]}  Nbd7 {[%clk 0:02:52]} 9. Ng3 {[%clk 0:02:59]}  Bh7 {[%clk 0:02:51]} 10. h4 {[%clk 0:02:58]}  Nb6 {[%clk 0:02:47]} 11. Bd3 {[%clk 0:02:58]}  Bxd3 {[%clk 0:02:45]} 12. Qxd3 {[%clk 0:02:59]}  h5 {[%clk 0:02:44]} 13. Bg5 {[%clk 0:02:55]}  Be7 {[%clk 0:02:43]} 14. Nf5 {[%clk 0:02:44]}  g6 {[%clk 0:02:39]} 15. Nxe7 {[%clk 0:02:41]}  Qxe7 {[%clk 0:02:39]} 16. O-O-O {[%clk 0:02:40]}  Qe6 {[%clk 0:02:29]} 17. f3 {[%clk 0:02:37]}  O-O-O {[%clk 0:02:17]} 18. e4 {[%clk 0:02:16]}  Rd7 {[%clk 0:02:14]} 19. Rhe1 {[%clk 0:02:12]}  dxe4 {[%clk 0:02:14]} 20. fxe4 {[%clk 0:02:11]}  Ng4 {[%clk 0:02:13]} 21. d5 {[%clk 0:02:02]}  Qe5 {[%clk 0:02:08]} 22. Qf3 {[%clk 0:01:59]}  Re8 {[%clk 0:01:18]} 23. dxc6 {[%clk 0:01:51]}  bxc6 {[%clk 0:01:16]} 24. Rxd7 {[%clk 0:01:51]}  Nxd7 {[%clk 0:01:13]} 25. Qxf7 {[%clk 0:01:51]}  Qe6 {[%clk 0:01:04]} 26. Rf1 {[%clk 0:01:29]}  Nge5 {[%clk 0:01:00]} 27. Qxe6 {[%clk 0:01:27]}  Rxe6 {[%clk 0:01:00]} 28. Kc2 {[%clk 0:01:27]}  Kb7 {[%clk 0:00:56]} 29. b3 {[%clk 0:01:24]}  Re8 {[%clk 0:00:51]} 30. Be3 {[%clk 0:01:19]}  Ng4 {[%clk 0:00:47]} 31. Bd4 {[%clk 0:01:19]}  Nde5 {[%clk 0:00:46]} 32. Na4 {[%clk 0:01:08]}  a5 {[%clk 0:00:33]} 33. Nc5+ {[%clk 0:01:08]}  Kc7 {[%clk 0:00:33]} 34. Nd3 {[%clk 0:01:03]}  Nd7 {[%clk 0:00:31]} 35. Rf7 {[%clk 0:00:55]}  Kc8 {[%clk 0:00:26]} 36. Kc3 {[%clk 0:00:46]}  Rxe4 {[%clk 0:00:17]} 37. Rxd7 {[%clk 0:00:46]} 1-0

[Event "January 2 Early 2024"]
[Site "https://www.chess.com"]
[Date "2024.01.02"]
[Round "3"]
[White "Bok, Benjamin"]
[Black "Papasimakopoulos, Alexandros"]
[Result "1-0"]
[Board "56"]
[TimeControl "180+1"]
[WhiteFideId "1017063"]
[BlackFideId "4244125"]
[WhiteElo "2946"]
[BlackElo "2640"]
[WhiteTeam "NED"]
[BlackTeam "GRE"]
[WhiteClock "0:00:26"]
[BlackClock "0:00:13"]

1. d4 {[%clk 0:03:00]}  d5 {[%clk 0:02:59]} 2. c4 {[%clk 0:03:00]}  e6 {[%clk 0:02:59]} 3. Nc3 {[%clk 0:03:00]}  Be7 {[%clk 0:02:59]} 4. Nf3 {[%clk 0:03:00]}  Nf6 {[%clk 0:02:59]} 5. g3 {[%clk 0:03:00]}  b6 {[%clk 0:02:55]} 6. cxd5 {[%clk 0:02:58]}  exd5 {[%clk 0:02:55]} 7. Bg2 {[%clk 0:02:58]}  O-O {[%clk 0:02:55]} 8. O-O {[%clk 0:02:59]}  Bb7 {[%clk 0:02:56]} 9. Bf4 {[%clk 0:02:58]}  c5 {[%clk 0:02:55]} 10. Rc1 {[%clk 0:02:57]}  Nbd7 {[%clk 0:02:54]} 11. Ne5 {[%clk 0:02:57]}  Re8 {[%clk 0:02:49]} 12. dxc5 {[%clk 0:02:47]}  Bxc5 {[%clk 0:02:25]} 13. Nd3 {[%clk 0:02:33]}  Bf8 {[%clk 0:01:28]} 14. Nb5 {[%clk 0:02:32]}  Nh5 {[%clk 0:01:16]} 15. Nc7 {[%clk 0:02:27]}  Nxf4 {[%clk 0:01:14]} 16. Nxf4 {[%clk 0:02:28]}  Nf6 {[%clk 0:01:05]} 17. Nxe8 {[%clk 0:02:18]}  Qxe8 {[%clk 0:01:06]} 18. Nxd5 {[%clk 0:02:14]}  Nxd5 {[%clk 0:00:46]} 19. Bxd5 {[%clk 0:02:15]}  Rd8 {[%clk 0:00:46]} 20. e4 {[%clk 0:02:11]}  Bxd5 {[%clk 0:00:44]} 21. exd5 {[%clk 0:02:11]}  Qe5 {[%clk 0:00:43]} 22. Rc2 {[%clk 0:01:40]}  g6 {[%clk 0:00:43]} 23. Re1 {[%clk 0:01:34]}  Qf6 {[%clk 0:00:43]} 24. a3 {[%clk 0:01:27]}  a5 {[%clk 0:00:42]} 25. Re4 {[%clk 0:01:10]}  Bd6 {[%clk 0:00:39]} 26. Kg2 {[%clk 0:01:06]}  Kg7 {[%clk 0:00:39]} 27. Qf3 {[%clk 0:01:05]}  Bc5 {[%clk 0:00:38]} 28. Qxf6+ {[%clk 0:01:04]}  Kxf6 {[%clk 0:00:39]} 29. b4 {[%clk 0:01:05]}  axb4 {[%clk 0:00:32]} 30. axb4 {[%clk 0:01:06]}  Bd6 {[%clk 0:00:32]} 31. Rc6 {[%clk 0:01:04]}  b5 {[%clk 0:00:33]} 32. Rb6 {[%clk 0:01:02]}  Kf5 {[%clk 0:00:33]} 33. Kf3 {[%clk 0:00:59]}  h5 {[%clk 0:00:29]} 34. h3 {[%clk 0:00:59]}  g5 {[%clk 0:00:20]} 35. g4+ {[%clk 0:00:58]}  hxg4+ {[%clk 0:00:21]} 36. hxg4+ {[%clk 0:00:59]}  Kg6 {[%clk 0:00:22]} 37. Rxb5 {[%clk 0:00:57]}  Bf4 {[%clk 0:00:22]} 38. Rc5 {[%clk 0:00:52]}  Ra8 {[%clk 0:00:20]} 39. b5 {[%clk 0:00:45]}  Ra3+ {[%clk 0:00:18]} 40. Kg2 {[%clk 0:00:45]}  f6 {[%clk 0:00:17]} 41. b6 {[%clk 0:00:40]}  Rb3 {[%clk 0:00:17]} 42. Rc6 {[%clk 0:00:39]}  Kf7 {[%clk 0:00:17]} 43. d6 {[%clk 0:00:37]}  Be5 {[%clk 0:00:17]} 44. d7 {[%clk 0:00:31]}  Ke7 {[%clk 0:00:17]} 45. Rxf6 {[%clk 0:00:29]}  Rb5 {[%clk 0:00:13]} 46. Rf5 {[%clk 0:00:26]} 1-0

[Event "January 2 Early 2024"]
[Site "https://www.chess.com"]
[Date "2024.01.02"]
[Round "3"]
[White "Solovchuk, Oleksiy"]
[Black "NevorLegov"]
[Result "0-1"]
[Board "57"]
[TimeControl "180+1"]
[WhiteFideId "14115220"]
[WhiteElo "2595"]
[BlackElo "2935"]
[WhiteTeam "UKR"]
[WhiteClock "0:00:15"]
[BlackClock "0:01:05"]

1. c4 {[%clk 0:01:04]}  c6 {[%clk 0:02:56]} 2. Nf3 {[%clk 0:01:03]}  d5 {[%clk 0:02:57]} 3. e3 {[%clk 0:01:03]}  Nf6 {[%clk 0:02:57]} 4. b3 {[%clk 0:01:03]}  Bf5 {[%clk 0:02:55]} 5. Bb2 {[%clk 0:01:04]}  e6 {[%clk 0:02:55]} 6. Nc3 {[%clk 0:01:03]}  h6 {[%clk 0:02:55]} 7. Be2 {[%clk 0:01:03]}  Nbd7 {[%clk 0:02:54]} 8. O-O {[%clk 0:01:04]}  Bd6 {[%clk 0:02:53]} 9. Rc1 {[%clk 0:01:04]}  O-O {[%clk 0:02:54]} 10. cxd5 {[%clk 0:01:04]}  exd5 {[%clk 0:02:53]} 11. d3 {[%clk 0:01:04]}  Re8 {[%clk 0:02:53]} 12. g3 {[%clk 0:01:03]}  Bh3 {[%clk 0:02:40]} 13. Re1 {[%clk 0:01:02]}  Qe7 {[%clk 0:02:32]} 14. Bf1 {[%clk 0:01:00]}  Bg4 {[%clk 0:02:28]} 15. h3 {[%clk 0:00:59]}  Bh5 {[%clk 0:02:26]} 16. Bg2 {[%clk 0:00:56]}  Ne5 {[%clk 0:02:25]} 17. Nb1 {[%clk 0:00:48]}  Nfd7 {[%clk 0:02:22]} 18. g4 {[%clk 0:00:39]}  Bg6 {[%clk 0:02:20]} 19. e4 {[%clk 0:00:29]}  Nxf3+ {[%clk 0:02:17]} 20. Bxf3 {[%clk 0:00:30]}  Qh4 {[%clk 0:01:43]} 21. Bg2 {[%clk 0:00:27]}  Bf4 {[%clk 0:01:42]} 22. Rc2 {[%clk 0:00:24]}  h5 {[%clk 0:01:40]} 23. Qf3 {[%clk 0:00:22]}  Be5 {[%clk 0:01:23]} 24. exd5 {[%clk 0:00:15]}  Bxb2 {[%clk 0:01:14]} 25. Rxe8+ {[%clk 0:00:16]}  Rxe8 {[%clk 0:01:14]} 26. Rxb2 {[%clk 0:00:17]}  Re1+ {[%clk 0:01:14]} 27. Kh2 {[%clk 0:00:17]}  Ne5 {[%clk 0:01:12]} 28. Qg3 {[%clk 0:00:17]}  Nxg4+ {[%clk 0:01:11]} 29. Qxg4 {[%clk 0:00:15]}  hxg4 {[%clk 0:01:11]} 30. Nc3 {[%clk 0:00:15]}  Qf6 {[%clk 0:01:05]} 0-1

[Event "January 2 Early 2024"]
[Site "https://www.chess.com"]
[Date "2024.01.02"]
[Round "3"]
[White "Shubenkova, Veronika"]
[Black "Yeletsky, Ivan"]
[Result "0-1"]
[Board "59"]
[TimeControl "180+1"]
[WhiteFideId "44124040"]
[BlackFideId "24180327"]
[WhiteElo "2592"]
[BlackElo "2864"]
[WhiteTeam "RUS"]
[BlackTeam "RUS"]
[WhiteClock "0:02:09"]
[BlackClock "0:01:55"]

1. d4 {[%clk 0:02:59]}  Nf6 {[%clk 0:02:59]} 2. e3 {[%clk 0:02:59]}  Nc6 {[%clk 0:02:59]} 3. f4 {[%clk 0:02:58]}  d5 {[%clk 0:02:58]} 4. Nf3 {[%clk 0:02:58]}  Bf5 {[%clk 0:02:58]} 5. c3 {[%clk 0:02:58]}  e6 {[%clk 0:02:57]} 6. Bd3 {[%clk 0:02:58]}  g6 {[%clk 0:02:55]} 7. O-O {[%clk 0:02:58]}  Bd6 {[%clk 0:02:52]} 8. Ne5 {[%clk 0:02:59]}  h5 {[%clk 0:02:52]} 9. Qc2 {[%clk 0:02:57]}  Ne7 {[%clk 0:02:51]} 10. Nd2 {[%clk 0:02:57]}  c5 {[%clk 0:02:35]} 11. e4 {[%clk 0:02:48]}  dxe4 {[%clk 0:02:34]} 12. Nxe4 {[%clk 0:02:48]}  Nxe4 {[%clk 0:02:32]} 13. Bxe4 {[%clk 0:02:48]}  cxd4 {[%clk 0:02:33]} 14. cxd4 {[%clk 0:02:43]}  Bxe5 {[%clk 0:02:20]} 15. Qa4+ {[%clk 0:02:33]}  Qd7 {[%clk 0:02:00]} 16. Qxd7+ {[%clk 0:02:27]}  Kxd7 {[%clk 0:02:01]} 17. Bxf5 {[%clk 0:02:27]}  Bxd4+ {[%clk 0:02:00]} 18. Kh1 {[%clk 0:02:26]}  Nxf5 {[%clk 0:02:00]} 19. Rd1 {[%clk 0:02:09]}  Rad8 {[%clk 0:01:55]} 0-1